bitfinex-derivatives/quotes_SOLF0:USTF0_20260308
["timestamp","ask_amount","ask_price","bid_price","bid_amount"]
[1772938579302,10.911,82.493,82.451,11.31948508]
[1772938579902,11.5775779,82.501,82.451,11.31948508]
[1772938580911,22.4875779,82.501,82.451,11.31948508]
[1772938581310,11.5775779,82.5,82.451,11.31948508]
[1772938582809,11.5775779,82.498,82.451,11.31948508]
[1772938584114,11.5775779,82.489,82.43,2.74078728]
[1772938584313,11.5775779,82.479,82.43,2.74078728]
[1772938584508,11.5775779,82.479,82.43,14.06027236]
[1772938585008,11.5775779,82.492,82.45,2.74078728]
[1772938585312,11.5775779,82.492,82.45,14.06027236]
[1772938586110,11.5775779,82.492,82.45,24.97727236]
[1772938586313,10.91,82.502,82.451,11.31948508]
[1772938587715,10.91,82.502,82.46,2.74078728]
[1772938590212,11.5775779,82.501,82.46,2.74078728]
[1772938590810,11.5775779,82.501,82.455,11.31948508]
[1772938591115,11.5775779,82.499,82.443,11.31948508]
[1772938591913,14.31836518,82.49,82.443,11.31948508]
[1772938592914,14.31836518,82.49,82.43,2.74078728]
[1772938593315,10.914,82.473,82.43,2.74078728]
[1772938593510,10.72011684,82.477,82.43,2.74078728]
[1772938594823,10.72011684,82.473,82.426,10.48426997]
[1772938595719,10.72011684,82.473,82.431,10.48426997]
[1772938595921,10.72011684,82.499,82.441,10.48426997]
[1772938596427,10.72011684,82.491,82.441,10.48426997]
[1772938597818,10.912,82.488,82.441,10.48426997]
[1772938599026,21.63211684,82.488,82.441,10.48426997]
[1772938599217,10.72011684,82.469,82.419,10.48426997]
[1772938599418,10.72011684,82.469,82.421,10.48426997]
[1772938599722,10.72011684,82.489,82.431,10.48426997]
[1772938600831,10.913,82.482,82.431,10.48426997]
[1772938602128,21.63311684,82.482,82.431,10.48426997]
[1772938602329,10.72011684,82.481,82.431,10.48426997]
[1772938602928,10.72011684,82.477,82.43,2.74078728]
[1772938603126,10.72011684,82.477,82.42,2.74078728]
[1772938603328,10.72011684,82.469,82.418,10.48426997]
[1772938603526,2.74078728,82.45,82.4,10.48426997]
[1772938603725,10.72011684,82.439,82.392,298.08824607]
[1772938603925,10.72011684,82.429,82.374,10.48426997]
[1772938604233,2.74078728,82.41,82.36,13.22505725]
[1772938604526,2.74078728,82.39,82.33,2.74078728]
[1772938604731,2.74078728,82.37,82.32,2.74078728]
[1772938604931,13.46090412,82.39,82.34,2.74078728]
[1772938605121,13.46090412,82.39,82.259,52.50125203]
[1772938605122,2.74078728,82.41,82.351,10.48426997]
[1772938605324,10.72011684,82.413,82.361,10.48426997]
[1772938606127,10.72011684,82.409,82.35,2.74078728]
[1772938606329,10.72011684,82.409,82.36,2.74078728]
[1772938606532,10.72011684,82.409,82.346,10.48426997]
[1772938608332,6.87300489,82.4,82.317,10.48426997]
[1772938608536,10.72011684,82.399,82.317,10.48426997]
[1772938608932,10.72011684,82.389,82.317,10.48426997]
[1772938610435,10.72011684,82.365,82.302,10.48426997]
[1772938610936,10.72011684,82.399,82.302,10.48426997]
[1772938611142,10.72011684,82.38,82.31,6.87300489]
[1772938611440,10.72011684,82.396,82.311,10.48426997]
[1772938611833,10.72011684,82.396,82.25,28.76000489]
[1772938611834,10.72011684,82.396,82.315,10.48426997]
[1772938612031,10.72011684,82.396,82.331,10.48426997]
[1772938613738,10.72011684,82.393,82.331,10.48426997]
[1772938614737,10.72011684,82.39,82.331,10.48426997]
[1772938615142,10.72011684,82.419,82.331,10.48426997]
[1772938615545,10.72011684,82.393,82.315,10.48426997]
[1772938616244,10.72011684,82.366,82.315,10.48426997]
[1772938620145,10.93,82.35,82.285,10.939]
[1772938620447,10.72011684,82.349,82.286,10.48426997]
[1772938621044,10.72011684,82.338,82.286,10.48426997]
[1772938621244,10.72011684,82.379,82.286,10.48426997]
[1772938621646,10.72011684,82.379,82.291,10.48426997]
[1772938621847,10.72011684,82.356,82.291,10.48426997]
[1772938622243,6.87300489,82.38,82.291,10.48426997]
[1772938622244,10.94902523,82.344,82.291,10.48426997]
[1772938622844,21.85,82.393,82.27,6.87300489]
[1772938622845,11.07858258,82.333,82.271,10.57272436]
[1772938623647,11.07858258,82.319,82.255,10.57272436]
[1772938624854,11.07858258,82.333,82.255,10.57272436]
[1772938625049,11.07858258,82.369,82.261,10.57272436]
[1772938625356,11.07858258,82.364,82.295,10.57272436]
[1772938625850,11.07858258,82.364,82.25,6.87300489]
[1772938625851,10.928,82.363,82.302,10.57272436]
[1772938626051,11.07858258,82.362,82.302,10.57272436]
[1772938627553,11.07858258,82.399,82.321,10.57272436]
[1772938627954,11.07858258,82.399,82.32,6.87897816]
[1772938627955,11.07858258,82.399,82.337,10.57272436]
[1772938628147,11.07858258,82.399,82.34,6.87897816]
[1772938629150,11.07858258,82.388,82.315,10.57272436]
[1772938630653,10.927,82.375,82.315,21.50772436]
[1772938630849,10.927,82.375,82.316,10.57272436]
[1772938631554,11.07858258,82.385,82.318,10.57272436]
[1772938631756,11.07858258,82.385,82.331,10.57272436]
[1772938632554,11.07858258,82.429,82.331,10.57272436]
[1772938633257,10.924,82.397,82.341,10.931]
[1772938634758,11.07858258,82.401,82.345,21.50372436]
[1772938635851,10.924,82.399,82.345,21.50372436]
[1772938636250,11.07858258,82.398,82.345,10.57272436]
[1772938636453,11.07858258,82.398,82.249,170.238]
[1772938636454,11.07858258,82.383,82.314,10.57272436]
[1772938637159,11.07858258,82.382,82.317,10.57272436]
[1772938637959,22.00558258,82.376,82.32,10.57272436]
[1772938638160,6.87897816,82.41,82.32,10.57272436]
[1772938638161,11.07858258,82.375,82.32,10.57272436]
[1772938638961,11.07858258,82.37,82.29,6.87897816]
[1772938639157,11.07858258,82.37,82.291,10.57272436]
[1772938639762,10.93,82.351,82.294,21.50972436]
[1772938639959,11.07858258,82.355,82.295,10.57272436]
[1772938641652,22.00858258,82.354,82.296,10.57272436]
[1772938642860,10.929,82.363,82.3,10.57272436]
[1772938643567,11.07858258,82.355,82.3,10.57272436]
[1772938644158,11.07858258,82.35,82.3,10.57272436]
[1772938644762,10.929,82.36,82.309,10.57272436]
[1772938645763,11.07858258,82.36,82.31,10.935]
[1772938645963,11.07858258,82.36,82.31,21.50772436]
[1772938646169,11.07858258,82.36,82.311,10.57272436]
[1772938649161,11.07858258,82.36,82.313,10.57272436]
[1772938649362,10.928,82.37,82.313,10.57272436]
[1772938650064,22.00658258,82.37,82.313,10.57272436]
[1772938650868,22.00658258,82.37,82.314,21.50772436]
[1772938651066,10.928,82.365,82.314,21.50772436]
[1772938651467,11.07858258,82.364,82.314,10.57272436]
[1772938652868,10.929,82.358,82.314,10.57272436]
[1772938658468,10.929,82.358,82.32,2.75179452]
[1772938662668,11.20867586,82.357,82.32,2.75179452]
[1772938662866,11.20867586,82.355,82.31,2.75179452]
[1772938663063,11.20867586,82.355,82.32,2.75179452]
[1772938663373,11.20867586,82.379,82.32,13.93493013]
[1772938664268,22.13667586,82.368,82.32,13.93493013]
[1772938664472,11.20867586,82.367,82.32,13.93493013]
[1772938665475,11.20867586,82.363,82.32,13.93493013]
[1772938666766,10.929,82.359,82.32,13.93493013]
[1772938668272,11.20867586,82.358,82.32,13.93493013]
[1772938672868,10.929,82.356,82.32,13.93493013]
[1772938676873,11.20867586,82.384,82.34,2.75179452]
[1772938677075,11.20867586,82.384,82.35,2.75179452]
[1772938677381,11.20867586,82.384,82.33,2.75179452]
[1772938678984,10.928,82.367,82.33,2.75179452]
[1772938680981,14.92394657,82.424,82.28,49.63089431]
[1772938680982,11.20867586,82.364,82.32,2.75179452]
[1772938681983,10.93,82.353,82.32,2.75179452]
[1772938683187,10.929,82.36,82.32,2.75179452]
[1772938683686,10.93,82.348,82.299,11.27787251]
[1772938683879,10.67584567,82.347,82.31,2.75179452]
[1772938684384,21.847,82.403,82.3,2.75179452]
[1772938684385,10.67584567,82.344,82.3,2.75179452]
[1772938685291,10.67584567,82.357,82.32,2.75179452]
[1772938688094,10.67584567,82.357,82.31,2.75179452]
[1772938688289,10.67584567,82.357,82.32,2.75179452]
[1772938688594,10.67584567,82.357,82.32,2.75203448]
[1772938689388,10.67584567,82.353,82.31,2.75203448]
[1772938690688,10.67584567,82.353,82.32,2.75203448]
[1772938691594,10.67584567,82.353,82.31,2.75203448]
[1772938691783,10.93,82.35,82.31,2.75203448]
[1772938691986,10.67584567,82.349,82.31,2.75203448]
[1772938692890,10.67584567,82.349,82.32,2.75203448]
[1772938694297,10.67584567,82.349,82.31,2.75203448]
[1772938698896,10.67584567,82.365,82.33,2.75203448]
[1772938699796,10.928,82.364,82.33,2.75203448]
[1772938701494,10.67584567,82.36,82.33,2.75203448]
[1772938707203,10.67584567,82.36,82.321,11.27787251]
[1772938709305,10.67584567,82.36,82.33,2.75203448]
[1772938709708,10.67584567,82.36,82.278,12.13]
[1772938709709,10.67584567,82.391,82.35,14.02990699]
[1772938710000,10.67584567,82.408,82.37,2.75203448]
[1772938710205,10.67584567,82.408,82.36,14.02990699]
[1772938712004,10.67584567,82.408,82.37,2.75203448]
[1772938713907,10.67584567,82.408,82.371,10.96670215]
[1772938718703,10.95593162,82.419,82.38,2.75203448]
[1772938719304,10.95593162,82.419,82.371,10.96670215]
[1772938719910,10.95593162,82.419,82.379,10.926]
[1772938720908,10.95593162,82.419,82.382,10.96670215]
[1772938721109,10.95593162,82.419,82.37,2.75203448]
[1772938721309,10.95593162,82.419,82.371,10.96670215]
[1772938721515,10.95593162,82.419,82.38,2.75203448]
[1772938722305,10.92,82.429,82.381,10.96670215]
[1772938722505,10.95593162,82.431,82.384,10.96670215]
[1772938722708,10.95593162,82.431,82.391,10.96670215]
[1772938725208,10.95593162,82.431,82.393,21.89070215]
[1772938729108,10.95593162,82.427,82.376,10.96670215]
[1772938729609,10.95593162,82.427,82.363,10.96670215]
[1772938729807,10.95593162,82.409,82.35,2.75203448]
[1772938730011,10.95593162,82.359,82.281,10.96670215]
[1772938730214,169.861,82.433,82.27,2.75203448]
[1772938730215,10.95593162,82.328,82.27,2.75203448]
[1772938730614,10.95593162,82.319,82.27,2.75203448]
[1772938731210,10.95593162,82.319,82.261,10.96670215]
[1772938732517,10.95593162,82.319,82.26,2.75203448]
[1772938732518,2.75203448,82.31,82.26,2.75203448]
[1772938732719,10.95593162,82.309,82.26,2.75203448]
[1772938732914,2.75203448,82.32,82.27,13.71873663]
[1772938733113,10.95593162,82.325,82.271,10.96670215]
[1772938733811,10.95593162,82.349,82.291,10.96670215]
[1772938734114,10.95593162,82.349,82.3,2.75203448]
[1772938734718,10.95593162,82.346,82.3,2.75203448]
[1772938735120,10.95593162,82.346,82.31,2.75203448]
[1772938735918,10.95593162,82.346,82.3,2.75203448]
[1772938736822,10.95593162,82.346,82.301,10.96670215]
[1772938737920,10.95593162,82.346,82.31,2.75203448]
[1772938738322,10.95593162,82.361,82.33,2.75203448]
[1772938740024,10.95593162,82.359,82.31,2.75203448]
[1772938741424,10.95593162,82.359,82.32,2.75203448]
[1772938741927,10.95593162,82.359,82.308,10.96670215]
[1772938741928,10.95593162,82.359,82.33,2.75203448]
[1772938744028,10.95593162,82.359,82.32,2.75203448]
[1772938745628,10.95593162,82.359,82.33,2.75203448]
[1772938747622,11.54470428,82.375,82.33,2.75203448]
[1772938748531,11.54470428,82.375,82.33,2.75133535]
[1772938749630,11.54470428,82.375,82.32,2.75133535]
[1772938750018,11.54470428,82.375,82.33,2.75133535]
[1772938751029,11.54470428,82.37,82.33,2.75133535]
[1772938751921,11.54470428,82.37,82.32,2.75133535]
[1772938751922,11.54470428,82.365,82.32,2.75133535]
[1772938752926,11.54470428,82.361,82.31,2.75133535]
[1772938753230,11.54470428,82.359,82.31,2.75133535]
[1772938754829,11.54470428,82.351,82.31,2.75133535]
[1772938755828,22.47470428,82.35,82.31,2.75133535]
[1772938756029,11.54470428,82.35,82.32,2.75133535]
[1772938757234,11.54470428,82.35,82.31,2.75133535]
[1772938759035,11.54470428,82.35,82.32,2.75133535]
[1772938759334,11.54470428,82.35,82.31,2.75133535]
[1772938759730,11.54470428,82.35,82.311,11.32303113]
[1772938759935,10.929,82.359,82.313,11.32303113]
[1772938760734,22.47370428,82.359,82.313,11.32303113]
[1772938761336,11.54470428,82.358,82.313,11.32303113]
[1772938761841,11.54470428,82.358,82.32,14.07436648]
[1772938762049,11.54470428,82.371,82.331,11.32303113]
[1772938763041,10.928,82.369,82.331,11.32303113]
[1772938763241,11.54470428,82.368,82.331,11.32303113]
[1772938764048,11.54470428,82.368,82.33,2.75133535]
[1772938765438,11.54470428,82.368,82.32,2.75133535]
[1772938766738,10.929,82.359,82.32,2.75133535]
[1772938766942,11.54470428,82.358,82.32,2.75133535]
[1772938768048,11.54470428,82.358,82.32,14.07436648]
[1772938770645,11.54470428,82.355,82.31,2.75133535]
[1772938770845,11.54470428,82.379,82.32,14.07436648]
[1772938771748,10.928,82.369,82.32,14.07436648]
[1772938771945,11.54470428,82.368,82.32,14.07436648]
[1772938773455,10.929,82.362,82.32,14.07436648]
[1772938774955,11.04676499,82.361,82.32,14.07436648]
[1772938776356,11.04676499,82.361,82.321,10.67037204]
[1772938776549,2.75133535,82.37,82.321,10.67037204]
[1772938777259,11.04676499,82.359,82.308,10.936]
[1772938777658,11.04676499,82.359,82.306,10.67037204]
[1772938778058,11.04676499,82.369,82.311,10.67037204]
[1772938778259,11.04676499,82.369,82.321,10.67037204]
[1772938778659,11.04676499,82.369,82.322,10.934]
[1772938778859,11.04676499,82.369,82.323,10.67037204]
[1772938779155,11.04676499,82.369,82.33,2.75133535]
[1772938779359,11.04676499,82.369,82.331,10.67037204]
[1772938781859,10.926,82.381,82.331,10.67037204]
[1772938782063,11.04676499,82.385,82.34,2.75133535]
[1772938782657,11.04676499,82.385,82.34,13.42170739]
[1772938782857,21.97276499,82.385,82.34,13.42170739]
[1772938785463,11.04676499,82.385,82.35,13.42170739]
[1772938785863,11.04676499,82.385,82.35,10.67037204]
[1772938788862,11.04676499,82.385,82.343,10.931]
[1772938789663,11.04676499,82.385,82.34,2.75133535]
[1772938789860,11.04676499,82.385,82.34,13.42170739]
[1772938790755,11.04676499,82.385,82.341,10.67037204]
[1772938792468,11.04676499,82.385,82.342,10.931]
[1772938792763,11.04676499,82.385,82.35,2.75133535]
[1772938792967,10.924,82.396,82.351,10.67037204]
[1772938793262,11.04676499,82.407,82.371,10.67037204]
[1772938793956,10.923,82.406,82.371,10.67037204]
[1772938794358,21.96976499,82.406,82.371,10.67037204]
[1772938795972,11.04676499,82.405,82.371,10.67037204]
[1772938796665,11.04676499,82.399,82.341,10.67037204]
[1772938796866,11.04676499,82.379,82.33,2.75133535]
[1772938797067,2.75133535,82.37,82.32,2.75133535]
[1772938797369,11.04676499,82.369,82.32,2.75133535]
[1772938797765,11.04676499,82.369,82.321,10.934]
[1772938798370,11.04676499,82.369,82.32,2.75133535]
[1772938798564,11.04676499,82.369,82.322,10.67037204]
[1772938798769,11.04676499,82.359,82.31,2.75133535]
[1772938799372,11.04676499,82.359,82.304,10.67037204]
[1772938799573,10.929,82.357,82.308,10.67037204]
[1772938799779,11.04676499,82.359,82.311,10.67037204]
[1772938800272,11.04676499,82.371,82.32,2.75133535]
[1772938800474,11.04676499,82.371,82.321,10.67037204]
[1772938800870,10.927,82.37,82.321,10.67037204]
[1772938801174,11.04676499,82.369,82.321,10.67037204]
[1772938801577,11.04676499,82.351,82.297,10.67037204]
[1772938801774,11.04676499,82.359,82.31,2.75133535]
[1772938801965,11.04676499,82.37,82.321,10.67037204]
[1772938802774,10.83808049,82.369,82.321,10.67037204]
[1772938803169,10.83808049,82.369,82.321,5.83037204]
[1772938804576,10.83808049,82.359,82.3,2.75133535]
[1772938805274,10.83808049,82.359,82.31,2.75133535]
[1772938805577,10.83808049,82.347,82.301,11.70612118]
[1772938806671,10.83808049,82.329,82.282,11.70612118]
[1772938807375,10.83808049,82.322,82.282,11.70612118]
[1772938807574,10.83808049,82.322,82.27,2.75133535]
[1772938807779,10.83808049,82.309,82.223,11.70612118]
[1772938808079,10.83808049,82.303,82.26,2.75133535]
[1772938808579,10.83808049,82.303,82.26,2.75586867]
[1772938809074,10.83808049,82.299,82.25,2.75586867]
[1772938809275,10.83808049,82.312,82.27,14.46198985]
[1772938809874,10.83808049,82.31,82.27,2.75586867]
[1772938810472,10.83808049,82.31,82.26,2.75586867]
[1772938811076,10.83808049,82.31,82.261,11.70612118]
[1772938811279,10.83808049,82.31,82.27,14.46198985]
[1772938811475,21.77208049,82.322,82.27,14.46198985]
[1772938811679,10.83808049,82.321,82.27,14.46198985]
[1772938812479,10.83808049,82.315,82.261,11.70612118]
[1772938812778,10.83808049,82.315,82.27,2.75586867]
[1772938813571,10.83808049,82.31,82.261,11.70612118]
[1772938815279,10.83808049,82.308,82.25,2.75586867]
[1772938815577,10.83808049,82.308,82.25,14.46198985]
[1772938816379,10.83808049,82.308,82.26,2.75586867]
[1772938816574,10.83808049,82.321,82.281,11.70612118]
[1772938817580,10.83808049,82.321,82.29,2.75586867]
[1772938818385,10.83808049,82.318,82.28,2.75586867]
[1772938818585,10.83808049,82.318,82.267,11.70612118]
[1772938818586,10.83808049,82.318,82.27,2.75586867]
[1772938819476,21.77408049,82.307,82.27,2.75586867]
[1772938819681,10.83808049,82.306,82.27,2.75586867]
[1772938820881,10.83808049,82.327,82.28,14.46198985]
[1772938821079,10.83808049,82.327,82.29,2.75586867]
[1772938825386,10.83808049,82.341,82.301,11.70612118]
[1772938826291,10.83808049,82.337,82.287,10.938]
[1772938826481,10.83808049,82.337,82.29,2.75586867]
[1772938826992,10.83808049,82.337,82.3,2.75586867]
[1772938827191,10.83808049,82.359,82.31,2.75586867]
[1772938827492,10.83808049,82.359,82.31,14.46198985]
[1772938827991,10.83808049,82.359,82.31,2.75586867]
[1772938828688,10.83808049,82.372,82.321,11.70612118]
[1772938829387,10.83808049,82.356,82.3,2.75586867]
[1772938829693,10.83808049,82.349,82.292,11.70612118]
[1772938830190,10.83808049,82.335,82.28,13.69486867]
[1772938830391,10.83808049,82.335,82.29,2.75586867]
[1772938830588,10.83808049,82.329,82.28,2.75586867]
[1772938831392,2.75586867,82.34,82.28,2.75586867]
[1772938831393,10.83808049,82.321,82.28,2.75586867]
[1772938832190,10.83808049,82.321,82.29,2.75586867]
[1772938832393,10.83808049,82.321,82.28,2.75586867]
[1772938832585,10.83808049,82.321,82.28,14.21856274]
[1772938833493,11.3031288,82.316,82.28,2.75586867]
[1772938834590,11.3031288,82.316,82.27,11.46269407]
[1772938836293,11.3031288,82.313,82.27,11.46269407]
[1772938836593,11.3031288,82.313,82.253,11.46269407]
[1772938837192,11.3031288,82.311,82.253,11.46269407]
[1772938838290,11.3031288,82.311,82.258,11.46269407]
[1772938838792,11.3031288,82.324,82.268,11.46269407]
[1772938838990,11.3031288,82.359,82.268,11.46269407]
[1772938839292,22.2351288,82.339,82.279,11.46269407]
[1772938839491,11.3031288,82.339,82.281,11.46269407]
[1772938839688,6.88590125,82.38,82.281,11.46269407]
[1772938839892,11.3031288,82.379,82.281,11.46269407]
[1772938840094,6.88590125,82.38,82.299,11.46269407]
[1772938840095,11.3031288,82.365,82.299,11.46269407]
[1772938841089,10.929,82.359,82.303,11.46269407]
[1772938841592,11.3031288,82.365,82.307,11.46269407]
[1772938841793,11.3031288,82.399,82.307,11.46269407]
[1772938842893,22.2291288,82.378,82.323,11.46269407]
[1772938843302,11.3031288,82.377,82.323,11.46269407]
[1772938844495,11.3031288,82.375,82.313,10.935]
[1772938844688,11.3031288,82.375,82.3,6.88590125]
[1772938844689,11.3031288,82.375,82.314,11.46269407]
[1772938845801,11.3031288,82.375,82.32,22.39669407]
[1772938846895,11.3031288,82.375,82.32,10.934]
[1772938847197,11.3031288,82.385,82.323,11.46269407]
[1772938847989,22.2291288,82.383,82.328,11.46269407]
[1772938848195,11.3031288,82.382,82.328,11.46269407]
[1772938853303,11.3031288,82.382,82.33,11.46269407]
[1772938854803,10.926,82.381,82.33,11.46269407]
[1772938854997,11.3031288,82.38,82.33,11.46269407]
[1772938856602,11.3031288,82.38,82.34,2.75026156]
[1772938858405,10.925,82.393,82.34,11.46269407]
[1772938858608,11.3031288,82.389,82.342,11.46269407]
[1772938859211,11.3031288,82.389,82.35,2.75026156]
[1772938860205,11.3031288,82.389,82.326,11.46269407]
[1772938860410,11.3031288,82.389,82.34,2.75026156]
[1772938861606,11.3031288,82.378,82.33,2.75026156]
[1772938861807,11.3031288,82.369,82.313,11.46269407]
[1772938862004,11.3031288,82.369,82.33,2.75026156]
[1772938862917,11.60002451,82.389,82.34,2.75026156]
[1772938863614,14.35028607,82.38,82.33,11.88939302]
[1772938863815,14.35028607,82.38,82.32,2.75026156]
[1772938864013,11.60002451,82.369,82.316,11.88939302]
[1772938864815,11.60002451,82.36,82.316,11.88939302]
[1772938865214,14.35028607,82.36,82.28,62.0]
[1772938865409,11.60002451,82.355,82.303,11.88939302]
[1772938866118,11.60002451,82.355,82.304,10.936]
[1772938866318,11.60002451,82.355,82.305,11.88939302]
[1772938866511,11.60002451,82.355,82.31,2.75026156]
[1772938867008,11.60002451,82.349,82.305,11.88939302]
[1772938867413,11.60002451,82.349,82.31,2.75026156]
[1772938868614,11.60002451,82.363,82.311,11.88939302]
[1772938868919,11.60002451,82.363,82.32,2.75026156]
[1772938870314,10.925,82.389,82.34,14.63965458]
[1772938870517,11.60002451,82.388,82.34,14.63943193]
[1772938870717,11.60002451,82.388,82.35,2.75003891]
[1772938872021,11.60002451,82.384,82.34,2.75003891]
[1772938872921,11.60002451,82.371,82.33,2.75003891]
[1772938873121,11.60002451,82.371,82.327,11.88939302]
[1772938875115,11.60002451,82.361,82.313,11.88939302]
[1772938875318,11.60002451,82.361,82.3,11.88939302]
[1772938876720,11.02677299,82.341,82.3,11.88939302]
[1772938877119,11.02677299,82.341,82.287,11.48410996]
[1772938877316,10.93,82.351,82.287,11.48410996]
[1772938878319,11.02677299,82.355,82.306,11.48410996]
[1772938879026,11.02677299,82.355,82.309,11.48410996]
[1772938880326,11.02677299,82.352,82.309,11.48410996]
[1772938880718,11.02677299,82.37,82.309,11.48410996]
[1772938880925,11.02677299,82.389,82.33,11.48410996]
[1772938881928,11.02677299,82.377,82.33,11.48410996]
[1772938882226,11.02677299,82.377,82.32,10.934]
[1772938882227,11.02677299,82.377,82.32,22.41810996]
[1772938883322,11.02677299,82.377,82.321,11.48410996]
[1772938883929,11.02677299,82.373,82.321,11.48410996]
[1772938887035,21.841,82.424,82.291,11.48410996]
[1772938887036,11.02677299,82.361,82.291,11.48410996]
[1772938888141,11.02677299,82.349,82.301,11.48410996]
[1772938892043,11.02677299,82.347,82.292,10.938]
[1772938892736,11.02677299,82.347,82.293,10.80808539]
[1772938892936,10.93,82.352,82.297,10.80808539]
[1772938893743,10.93,82.352,82.302,10.80808539]
[1772938894444,10.93,82.352,82.31,2.75231888]
[1772938895847,11.75153989,82.347,82.3,2.75231888]
[1772938896141,11.75153989,82.347,82.29,2.75231888]
[1772938897139,11.75153989,82.338,82.29,24.49840427]
[1772938897446,11.75153989,82.338,82.3,2.75231888]
[1772938898741,11.75153989,82.338,82.31,2.75231888]
[1772938899241,11.75153989,82.338,82.3,2.75231888]
[1772938905150,10.932,82.337,82.3,2.75231888]
[1772938905348,11.75153989,82.336,82.29,2.75231888]
[1772938905749,11.75153989,82.336,82.3,2.75231888]
[1772938915155,10.932,82.335,82.3,2.75231888]
[1772938915356,11.75153989,82.334,82.3,2.75231888]
[1772938918754,10.932,82.333,82.3,2.75231888]
[1772938918952,11.75153989,82.332,82.29,2.75231888]
[1772938919358,10.933,82.33,82.29,2.75231888]
[1772938919660,11.75153989,82.332,82.3,2.75231888]
[1772938920459,11.75153989,82.327,82.29,2.75231888]
[1772938920662,11.75153989,82.327,82.158,170.428]
[1772938920663,11.75153989,82.319,82.257,10.80808539]
[1772938920858,11.75153989,82.319,82.26,2.75231888]
[1772938921058,11.15036304,82.365,82.28,2.75231888]
[1772938921059,11.75153989,82.304,82.28,2.75231888]
[1772938921460,11.75153989,82.316,82.28,2.75231888]
[1772938922151,10.935,82.315,82.28,2.75231888]
[1772938922352,10.8090073,82.314,82.27,2.75231888]
[1772938922961,10.8090073,82.314,82.27,13.99284948]
[1772938923457,11.35473494,82.311,82.27,13.99284948]
[1772938924163,11.35473494,82.302,82.26,2.75231888]
[1772938924364,11.35473494,82.302,82.25,2.75231888]
[1772938925762,11.35473494,82.291,82.25,2.75231888]
[1772938928063,10.939,82.285,82.25,2.75231888]
[1772938928461,10.939,82.285,82.245,11.2405306]
[1772938928462,11.35473494,82.284,82.23,13.99284948]
[1772938928968,11.35473494,82.297,82.251,11.2405306]
[1772938929764,10.938,82.292,82.251,11.2405306]
[1772938930164,11.35473494,82.319,82.27,2.75231888]
[1772938930364,22.29073494,82.304,82.27,2.75231888]
[1772938930564,11.35473494,82.304,82.27,2.75526492]
[1772938930765,11.35473494,82.304,82.261,11.2405306]
[1772938931064,11.35473494,82.304,82.25,2.75526492]
[1772938933062,11.35473494,82.312,82.271,11.2405306]
[1772938933977,11.35473494,82.312,82.26,2.75526492]
[1772938934468,11.35473494,82.312,82.26,13.99579552]
[1772938934873,11.35473494,82.309,82.26,13.99579552]
[1772938935768,11.35473494,82.306,82.263,11.2405306]
[1772938935966,11.35473494,82.306,82.26,2.75526492]
[1772938937169,11.35473494,82.301,82.241,11.2405306]
[1772938937371,11.35473494,82.301,82.25,13.69826492]
[1772938938170,11.35473494,82.301,82.25,24.93879552]
[1772938938869,10.938,82.294,82.25,24.93879552]
[1772938939069,11.35473494,82.293,82.25,13.99579552]
[1772938939668,10.938,82.291,82.25,13.99579552]
[1772938940268,11.35473494,82.29,82.25,13.99579552]
[1772938941371,14.10999986,82.29,82.234,11.2405306]
[1772938942763,10.941,82.271,82.234,11.2405306]
[1772938944162,11.35473494,82.278,82.234,11.2405306]
[1772938945967,10.94,82.276,82.234,11.2405306]
[1772938946173,11.35473494,82.275,82.234,11.2405306]
[1772938947164,11.35473494,82.275,82.24,2.75526492]
[1772938947368,10.939,82.284,82.241,11.2405306]
[1772938947569,10.939,82.284,82.25,2.75526492]
[1772938947872,11.35473494,82.287,82.25,2.75526492]
[1772938948071,11.35473494,82.309,82.25,13.99579552]
[1772938948470,11.35473494,82.309,82.26,2.75526492]
[1772938948670,11.35473494,82.309,82.261,11.2405306]
[1772938949665,10.936,82.306,82.261,11.2405306]
[1772938949866,11.35473494,82.305,82.261,11.2405306]
[1772938950975,22.29073494,82.303,82.261,11.2405306]
[1772938951172,11.35473494,82.302,82.261,11.2405306]
[1772938952973,10.91023487,82.3,82.261,11.2405306]
[1772938955377,10.91023487,82.3,82.26,2.75526492]
[1772938955378,10.936,82.31,82.271,11.75156571]
[1772938956077,10.91023487,82.312,82.271,11.75156571]
[1772938956581,10.934,82.318,82.28,14.50683063]
[1772938957171,10.91023487,82.317,82.28,11.75156571]
[1772938958179,10.91023487,82.314,82.27,2.75526492]
[1772938959283,10.91023487,82.314,82.27,14.50683063]
[1772938959781,10.935,82.312,82.27,14.50683063]
[1772938960578,10.91023487,82.303,82.26,2.75526492]
[1772938961179,10.91023487,82.303,82.26,14.50683063]
[1772938961376,2.75526492,82.3,82.241,11.75156571]
[1772938961577,10.91023487,82.299,82.241,11.75156571]
[1772938961982,10.91023487,82.283,82.241,11.75156571]
[1772938963783,10.939,82.28,82.241,11.75156571]
[1772938964779,21.84923487,82.28,82.241,11.75156571]
[1772938965087,10.91023487,82.279,82.241,11.75156571]